bitfinex/quotes_ETHUSD_20250507
["timestamp","ask_amount","ask_price","bid_price","bid_amount"]
[1746605945298,5.28089183,1838.9,1838.8,0.20287702]
[1746605945497,5.28089183,1838.9,1838.7,0.20344354]
[1746605945707,5.28089183,1838.9,1838.8,0.20287702]
[1746605946004,5.28089183,1838.9,1838.7,5.43859386]
[1746605946177,5.28089183,1838.9,1838.8,0.20287702]
[1746605946378,5.28089183,1838.9,1838.6,10.87761723]
[1746605946703,5.28089183,1838.9,1838.7,6.72969071]
[1746605947802,5.28089183,1838.9,1838.7,1.29120526]
[1746605948110,5.28089183,1838.9,1838.7,6.72982827]
[1746605950205,5.28089183,1838.9,1838.7,1.29120526]
[1746605950502,5.28089183,1838.9,1838.7,0.20344354]
[1746605950902,5.28089183,1838.9,1838.6,5.43874996]
[1746605951096,5.28089183,1838.9,1838.8,0.20208438]
[1746605951307,5.28089183,1838.9,1838.7,0.20265091]
[1746605951523,5.28089183,1838.9,1838.8,0.20208438]
[1746605951823,5.28089183,1838.9,1838.6,10.87745017]
[1746605951992,5.28079661,1838.9,1838.8,0.20208438]
[1746605952194,5.28079661,1838.9,1838.6,10.87745017]
[1746605952383,5.28079661,1838.9,1838.7,0.20203066]
[1746605952583,5.28079661,1838.9,1838.6,5.43870021]
[1746605952905,5.28079661,1838.9,1838.7,0.20203066]
[1746605953633,5.28079661,1838.9,1838.8,0.20146413]
[1746605954084,5.28079661,1838.9,1838.6,5.43870021]
[1746605954284,5.28079661,1838.9,1838.8,0.20146413]
[1746605954497,5.28079661,1838.9,1838.7,0.20203066]
[1746605954818,5.28079661,1838.9,1838.6,5.43870021]
[1746605955019,5.28079661,1838.9,1838.7,0.20203066]
[1746605955187,5.28079661,1838.9,1838.6,5.43870021]
[1746605955386,5.28079661,1838.9,1838.7,0.20203066]
[1746605955586,5.28079661,1838.9,1838.6,5.43870021]
[1746605955789,5.28079661,1838.9,1838.7,0.20203066]
[1746605956219,5.28079661,1838.9,1838.6,5.43870021]
[1746605956418,5.28079661,1838.9,1838.7,0.20203066]
[1746605956620,10.71883995,1838.9,1838.6,5.43870021]
[1746605956785,10.71883995,1838.9,1838.8,0.20146413]
[1746605956987,6.3526806,1838.9,1838.6,5.43870021]
[1746605957186,5.28079661,1838.9,1838.7,0.20203066]
[1746605957527,5.28079661,1838.9,1838.7,5.64065569]
[1746605957826,5.28079661,1838.9,1838.8,0.20146413]
[1746605960993,10.2,1839.2,1839.0,6.24945509]
[1746605961204,0.8315,1839.5,1839.1,6.26160141]
[1746605961424,0.8315,1839.5,1839.3,5.43670928]
[1746605961425,3.8315,1839.5,1839.3,5.43670928]
[1746605961610,0.8315,1839.5,1839.2,5.49137125]
[1746605961935,10.2,1839.6,1839.3,0.1982534]
[1746605962091,5.43598798,1839.6,1839.3,0.1982534]
[1746605962539,3.0,1839.5,1839.0,0.812]
[1746605962694,3.0,1839.4,1839.0,0.812]
[1746605962894,5.43626865,1839.5,1839.1,0.1993859]
[1746605964127,7.71706526,1839.5,1839.1,0.1993859]
[1746605964330,5.43657888,1839.4,1839.1,0.1993859]
[1746605964535,7.71706526,1839.5,1839.1,0.1993859]
[1746605964536,13.15356642,1839.5,1839.1,0.1993859]
[1746605964732,5.43667408,1839.4,1839.1,0.1993859]
[1746605964959,7.71725171,1839.5,1839.1,0.1993859]
[1746605965234,5.43665049,1839.4,1839.1,0.1993859]
[1746605967003,10.8734549,1839.4,1839.1,0.1993859]
[1746605967203,5.4368622,1839.3,1839.1,0.1993859]
[1746605967403,5.43665049,1839.4,1839.1,0.1993859]
[1746605968542,10.87345302,1839.4,1839.1,0.1993859]
[1746605968946,10.87345319,1839.4,1839.1,0.1993859]
[1746605969260,5.43665049,1839.4,1839.1,0.1993859]
[1746605969426,10.87344982,1839.4,1839.1,0.1993859]
[1746605969626,5.43665049,1839.4,1839.1,0.1993859]
[1746605971068,5.43665049,1839.4,1839.2,0.8034]
[1746605971421,5.43665049,1839.4,1839.3,0.1960834]
[1746605971640,7.7171704,1839.5,1839.3,0.1960834]
[1746605971839,5.43655539,1839.4,1839.3,0.1960834]
[1746605972042,5.43655539,1839.4,1839.2,0.8034]
[1746605972241,5.43655539,1839.4,1839.3,0.1960834]
[1746605977862,5.43655539,1839.4,1839.2,0.8034]
[1746605979863,5.43655539,1839.4,1839.3,0.19598007]
[1746605980641,5.43596434,1839.6,1839.3,0.19598007]
[1746605980866,5.43642996,1839.5,1839.3,0.19598007]
[1746605981763,10.87291888,1839.5,1839.3,0.19598007]
[1746605981927,5.43642996,1839.5,1839.3,0.19598007]
[1746605983461,10.87291477,1839.5,1839.3,0.19598007]
[1746605983960,5.43642996,1839.5,1839.3,0.19598007]
[1746605984866,5.43655539,1839.4,1839.3,0.19598007]
[1746605988758,5.43685796,1839.3,1839.0,0.7708]
[1746605988958,5.43714661,1839.2,1839.0,7.34645406]
[1746605989213,5.43697697,1839.3,1838.8,5.4382667]
[1746605989214,5.43778126,1839.0,1838.8,6.1818]
[1746605990092,5.43746941,1839.1,1838.8,6.1818]
[1746605991297,5.43746941,1839.1,1838.8,0.7708]
[1746605992171,5.43746941,1839.1,1838.9,18.0]
[1746605993290,7.71826602,1839.1,1838.9,18.0]
[1746605993789,5.4377379,1839.0,1838.9,18.0]
[1746605994521,5.43761111,1839.1,1838.9,18.0]
[1746605994669,5.43761111,1839.1,1838.8,0.7708]
[1746605994994,5.43761111,1839.1,1838.9,0.05437485]
[1746605995384,5.43761111,1839.1,1839.0,0.19623222]
[1746605997919,3.0,1839.3,1839.0,0.97993222]
[1746605998500,3.0,1839.3,1839.0,6.41762686]
[1746606000895,8.4368756,1839.3,1839.0,0.97993222]
[1746606002277,13.87396942,1839.3,1839.0,0.97993222]
[1746606002476,8.4368756,1839.3,1839.0,0.97993222]
[1746606004006,5.43718964,1839.2,1839.0,0.19623222]
[1746606005811,5.43727908,1839.2,1839.0,0.19623222]
[1746606006112,5.43727908,1839.2,1838.8,10.8763871]
[1746606006411,3.8174,1839.3,1839.1,0.19552808]
[1746606006609,3.0,1839.3,1839.0,6.24180281]
[1746606006914,3.0,1839.3,1839.1,0.19552808]
[1746606006915,8.48684319,1839.2,1839.1,0.19552808]
[1746606007074,11.48684319,1839.2,1839.1,0.19552808]
[1746606007273,5.43803986,1838.9,1838.5,6.24554069]
[1746606007503,5.43803986,1838.9,1838.6,0.19836041]
[1746606008815,10.87632124,1838.9,1838.6,0.19836041]
[1746606009512,10.87632124,1838.9,1838.7,18.0]
[1746606009721,5.43803986,1838.9,1838.7,18.0]
[1746606010044,5.43803986,1838.9,1838.8,0.19832935]
[1746606010220,3.0,1839.0,1838.8,0.19832935]
[1746606010383,5.4375449,1839.1,1838.8,2.83006229]
[1746606010720,3.0,1839.1,1838.8,8.26839066]
[1746606010929,3.0,1839.1,1838.8,8.32276779]
[1746606012419,3.0,1839.1,1838.8,8.26839066]
[1746606012624,3.0,1839.1,1838.9,18.82683907]
[1746606012820,3.0,1839.1,1838.9,0.82683907]
[1746606013120,3.0,1839.1,1839.0,0.19719648]
[1746606014491,3.0,1839.2,1839.0,5.63493295]
[1746606014691,5.28079661,1839.4,1839.0,6.42713295]
[1746606014925,10.71753069,1839.4,1839.0,7.6963192]
[1746606015232,5.28079661,1839.4,1839.0,7.69609881]
[1746606015441,5.28079661,1839.4,1839.1,5.43728619]
[1746606015618,2.28079661,1839.4,1839.1,5.43728619]
[1746606015815,7.71737292,1839.4,1839.2,0.1957194]
[1746606016124,7.71737292,1839.4,1839.1,5.43741434]
[1746606016352,5.28079661,1839.4,1839.3,0.19515318]
[1746606016510,5.28079661,1839.4,1839.2,0.1957194]
[1746606021659,5.28079661,1839.4,1839.3,5.43685097]
[1746606021957,2.28079661,1839.4,1839.3,5.61620223]
[1746606022157,0.8117,1839.7,1839.4,5.43650576]
[1746606022324,0.8117,1839.7,1839.5,6.24668712]
[1746606022325,2.28079661,1839.7,1839.5,6.24668712]
[1746606022529,2.28079661,1839.7,1839.5,0.98850578]
[1746606025076,7.7165643,1839.7,1839.5,0.98850578]
[1746606025433,7.7165643,1839.7,1839.5,0.17780578]
[1746606025746,7.7165643,1839.7,1839.3,0.8254]
[1746606026256,7.7165643,1839.7,1839.4,0.17837188]
[1746606026468,7.7165643,1839.7,1839.3,1.99245463]
[1746606026634,7.7165643,1839.7,1839.4,0.17837188]
[1746606026965,7.7165643,1839.7,1839.3,1.99245463]
[1746606027159,5.43596434,1839.6,1839.5,0.17780578]
[1746606027366,10.8721848,1839.6,1839.4,0.17613413]
[1746606027533,10.8721848,1839.6,1839.5,0.17556803]
[1746606027534,5.43596434,1839.6,1839.5,0.17556803]
[1746606028262,5.43596434,1839.6,1839.2,5.407]
[1746606028263,5.43655539,1839.4,1839.1,0.8074]
[1746606028564,7.717352,1839.4,1839.2,0.17726651]
[1746606028733,7.71764758,1839.3,1839.2,0.17726651]
[1746606029144,7.71764758,1839.3,1839.0,5.407]
[1746606029145,5.43734712,1839.2,1839.0,5.407]
[1746606029345,7.71823883,1839.1,1839.0,5.407]
[1746606029542,2.28079661,1839.1,1839.0,5.407]
[1746606029781,7.71823883,1839.1,1839.0,5.407]
[1746606029982,5.43733032,1839.2,1839.0,6.71512391]
[1746606030984,5.43744222,1839.1,1839.0,5.407]
[1746606031479,5.43744222,1839.1,1838.9,7.67423907]
[1746606031680,5.43744222,1839.1,1838.9,1.63423907]
[1746606031881,5.4377379,1839.0,1838.8,4.47567992]
[1746606032055,7.71883021,1838.9,1838.8,3.64617992]
[1746606033274,7.71883021,1838.9,1838.8,21.64617992]
[1746606034283,7.71883021,1838.9,1838.8,18.0]
[1746606035446,8.53273021,1838.9,1838.8,18.0]
[1746606036608,5.43841878,1838.8,1838.4,11.65359382]
[1746606036808,5.43841878,1838.8,1838.5,1.16535938]
[1746606040310,5.43841878,1838.8,1838.6,0.34491953]
[1746606043121,13.97101256,1838.9,1838.6,0.34491953]
[1746606043321,5.43835787,1838.8,1838.6,0.34491953]
[1746606047123,8.53273021,1838.9,1838.6,0.34491953]
[1746606048621,13.97100864,1838.9,1838.6,0.34491953]
[1746606048816,8.53273021,1838.9,1838.6,0.34491953]
[1746606049017,13.97103261,1838.9,1838.6,0.34491953]
[1746606049617,8.53273021,1838.9,1838.6,0.34491953]
[1746606049912,13.97100144,1838.9,1838.6,0.34491953]
[1746606050212,13.97104515,1838.9,1838.6,0.34491953]
[1746606050412,5.43839976,1838.8,1838.6,0.34491953]
[1746606051522,8.53273021,1838.9,1838.6,0.34491953]
[1746606051705,13.97099922,1838.9,1838.6,0.34491953]
[1746606052420,5.43834025,1838.8,1838.6,0.34491953]
[1746606053713,13.97105951,1838.9,1838.6,0.34491953]
[1746606055140,5.43857156,1838.8,1838.6,0.34491953]
[1746606055422,2.28079661,1838.7,1838.4,11.65371718]
[1746606055602,2.28079661,1838.7,1838.5,5.43920188]
[1746606055802,2.28079661,1838.7,1838.4,18.80238735]
[1746606056110,5.43857156,1838.8,1838.4,13.36297017]
[1746606056308,5.43857156,1838.8,1838.5,5.49356815]
[1746606056730,5.43857156,1838.8,1838.5,0.05438595]
[1746606056906,5.43857156,1838.8,1838.4,13.36297432]
[1746606057728,10.87714344,1838.8,1838.4,13.36297432]
[1746606058029,5.43923909,1838.5,1838.2,6.26231492]
[1746606058332,5.4391002,1838.6,1838.2,6.26231492]
[1746606059953,2.28079661,1838.5,1838.2,0.8223]
[1746606060108,7.72023179,1838.5,1838.1,5.44037775]
[1746606060709,13.9426915,1838.5,1838.1,5.44037775]
[1746606061012,15.33696065,1838.5,1838.1,5.44037775]
[1746606061213,5.43955651,1838.4,1838.0,11.675798]
[1746606062352,8.50315823,1838.5,1838.1,23.44038299]
[1746606063049,3.0,1838.7,1838.3,0.8086]
[1746606063050,11.51437842,1838.7,1838.3,0.8086]
[1746606063235,10.71899344,1838.9,1838.5,6.24767258]
[1746606063550,10.71904464,1838.9,1838.5,6.24767258]
[1746606063924,10.71904464,1838.9,1838.5,0.8086]
[1746606064126,5.43836937,1838.8,1838.5,0.8086]
[1746606064649,10.87698843,1838.8,1838.5,0.8086]
[1746606064823,7.71957389,1838.7,1838.5,0.8086]
[1746606065337,7.71957389,1838.7,1838.5,18.8086]
[1746606066576,7.71957389,1838.7,1838.5,18.0]
[1746606066941,7.71957389,1838.7,1838.4,5.407]
[1746606067474,7.71957389,1838.7,1838.3,11.6753024]
[1746606067778,7.71957389,1838.7,1838.3,13.38682822]
[1746606070273,7.71955436,1838.7,1838.3,13.38688418]
[1746606070480,7.71955436,1838.7,1838.4,0.34995846]
[1746606071175,7.71955436,1838.7,1838.4,5.78941035]
[1746606072381,7.71955436,1838.7,1838.4,0.34995846]
[1746606073668,7.71955436,1838.7,1838.4,5.78945761]
[1746606074084,2.28079661,1838.7,1838.4,7.7070861]
[1746606074249,2.28079661,1838.7,1838.4,13.14637601]
[1746606074450,2.28079661,1838.7,1838.4,3.09078695]
[1746606074672,2.28079661,1838.7,1838.4,8.53012595]
[1746606074863,2.28079661,1838.7,1838.5,0.7693]
[1746606075165,2.28079661,1838.7,1838.6,0.34880652]
[1746606086198,7.71942172,1838.7,1838.6,0.34880652]
[1746606086495,3.67321429,1838.7,1838.6,0.34880652]
[1746606086703,2.28079661,1838.7,1838.5,6.19659589]
[1746606086904,2.28079661,1838.7,1838.6,0.34887527]
[1746606088701,2.28079661,1838.9,1838.6,5.84201017]
[1746606088881,2.28079661,1838.9,1838.7,6.24997013]
[1746606089095,2.28079661,1838.9,1838.8,5.78491745]
[1746606093738,2.28079661,1838.9,1838.8,0.34658811]
[1746606095748,2.28079661,1838.9,1838.8,0.34497142]
[1746606098672,2.28079661,1838.9,1838.8,5.78330076]
[1746606098854,2.28079661,1838.9,1838.8,6.56080076]
[1746606099153,2.28079661,1838.9,1838.8,5.78330076]
[1746606099658,2.28079661,1838.9,1838.8,0.34497142]
[1746606101057,2.28079661,1838.9,1838.6,10.87743198]
[1746606101269,2.28079661,1838.9,1838.8,0.34497142]
[1746606101446,2.28079661,1838.9,1838.7,0.34554723]
[1746606101636,2.28079661,1838.9,1838.8,0.34497142]
[1746606101970,2.28079661,1838.9,1838.6,10.87743198]
[1746606102171,2.28079661,1838.9,1838.7,0.34554723]
[1746606102346,2.28079661,1838.9,1838.6,5.43871599]
[1746606102549,2.28079661,1838.7,1838.6,5.43871599]
[1746606103362,2.28079661,1838.7,1838.6,7.1487456]
[1746606106683,2.28079661,1838.7,1838.6,25.1487456]
[1746606110001,2.28079661,1838.7,1838.6,18.0]
[1746606110458,3.07539661,1838.7,1838.6,18.0]
[1746606112374,2.28079661,1838.7,1838.6,23.43892091]
[1746606112580,3.07769661,1838.9,1838.6,28.87765644]
[1746606112782,3.07769661,1838.9,1838.6,23.43873553]
[1746606113158,3.07769661,1838.9,1838.6,28.87748669]
[1746606113490,3.07769661,1838.9,1838.6,23.43873553]
[1746606114904,3.07769661,1838.9,1838.6,5.43873553]
[1746606115403,3.07769661,1838.9,1838.7,0.34637271]
[1746606115607,3.07769661,1838.9,1838.6,10.87745309]
[1746606115781,3.07769661,1838.9,1838.7,0.34637271]
[1746606115989,3.07769661,1838.9,1838.6,10.87745309]
[1746606116179,2.28079661,1838.9,1838.7,5.78494457]
[1746606116605,9.24255863,1839.1,1838.7,5.78482695]
[1746606116810,2.28079661,1839.0,1838.8,5.43821632]
[1746606117113,2.28079661,1839.0,1838.9,0.34522114]
[1746606118579,2.28079661,1839.0,1838.9,5.78325474]
[1746606118785,2.28079661,1839.0,1838.9,6.90540185]
[1746606119504,2.28079661,1839.0,1838.9,7.68050185]
[1746606120724,2.28079661,1839.1,1839.0,5.43765305]
[1746606121084,2.28079661,1839.1,1839.0,5.78188574]
[1746606121801,2.28079661,1839.1,1839.0,0.34423269]
[1746606127820,2.28079661,1839.1,1839.0,1.15503269]
[1746606128025,2.28079661,1839.3,1839.1,5.43744222]
[1746606128222,2.28079661,1839.3,1839.2,0.3430815]
[1746606129555,2.28079661,1839.3,1839.0,6.8267526]
[1746606129757,2.28079661,1839.1,1839.0,6.8267526]
[1746606130351,2.28079661,1839.1,1839.0,7.17009112]
[1746606140050,2.28079661,1839.1,1839.0,0.34333852]
[1746606141455,8.48883883,1839.1,1839.0,0.34333852]
[1746606141791,8.48883883,1839.1,1838.8,5.43815508]
[1746606141941,2.28079661,1838.9,1838.7,5.403]
[1746606142267,3.05139661,1838.9,1838.7,5.403]
[1746606142478,3.05139661,1838.9,1838.7,10.84156955]
[1746606142652,3.05139661,1838.9,1838.7,12.64650805]
[1746606142848,3.05139661,1838.9,1838.7,7.24350805]
[1746606145267,3.05139661,1838.9,1838.7,1.8049385]
[1746606145461,3.05139661,1838.9,1838.8,18.34407725]
[1746606147452,8.48943021,1838.9,1838.8,18.34407725]
[1746606149087,8.48943021,1838.9,1838.8,0.34407725]
[1746606149382,8.48943021,1838.9,1838.6,0.603432]
[1746606149583,2.28079661,1838.7,1838.6,0.603432]
[1746606152647,2.28079661,1838.9,1838.7,5.43847909]
[1746606152850,3.06379661,1839.1,1838.8,5.43822059]
[1746606153588,2.28079661,1839.1,1838.8,5.43815696]
[1746606153754,2.28079661,1839.1,1838.9,6.26402605]
[1746606154093,2.28079661,1839.1,1838.9,0.8261]
[1746606157664,2.28079661,1839.1,1838.9,6.26384449]
[1746606157981,2.28079661,1839.1,1838.9,6.89022894]
[1746606158190,2.28079661,1839.1,1838.9,12.32808662]
[1746606158393,2.28079661,1839.1,1838.9,6.89022894]
[1746606159683,2.28079661,1839.1,1838.8,5.43824305]
[1746606160385,2.28079661,1839.1,1838.9,0.3444645]
[1746606160891,7.71829766,1839.1,1838.9,0.3444645]
[1746606161185,2.28079661,1839.1,1838.9,0.3444645]
[1746606161564,2.28079661,1839.1,1838.9,5.78249228]
[1746606162488,2.28079661,1839.1,1838.9,0.3444645]
[1746606165491,2.28079661,1839.1,1838.9,5.7824729]
[1746606169600,2.28079661,1839.1,1838.9,5.78239821]
[1746606171195,6.23964217,1839.3,1839.0,5.43758866]
[1746606171196,3.08349661,1839.3,1839.0,5.43758866]
[1746606171401,2.28079661,1839.1,1838.9,5.4378617]
[1746606171700,2.28079661,1839.1,1838.9,5.43784735]
[1746606172387,2.28079661,1839.1,1839.0,5.4377379]
[1746606172996,2.28079661,1839.1,1838.9,5.43784735]
[1746606173796,2.28079661,1839.1,1838.9,10.87571595]
[1746606173996,2.28079661,1839.1,1838.9,10.8757087]
[1746606174196,2.28079661,1839.1,1838.9,5.43784735]
[1746606174496,0.8183,1839.0,1838.9,5.43784735]
[1746606174997,3.09909661,1839.1,1839.0,5.4377379]
[1746606175200,3.09909661,1839.1,1839.0,5.78045738]
[1746606175713,3.09909661,1839.1,1839.0,0.34271948]
[1746606176091,2.28079661,1839.1,1839.0,0.34271948]
[1746606176288,2.28079661,1839.1,1839.0,5.78045738]
[1746606176469,2.28079661,1839.1,1839.0,6.97934629]
[1746606178410,3.7731,1839.4,1839.0,6.97934629]
[1746606178569,5.28079661,1839.5,1839.3,5.43685097]
[1746606178768,5.28079661,1839.5,1839.4,0.33983277]
[1746606178976,5.28079661,1839.5,1839.3,5.43685097]
[1746606179273,5.28079661,1839.5,1839.4,0.33983277]
[1746606179584,2.28079661,1839.7,1839.5,5.43623921]
[1746606179992,10.9766,1839.8,1839.6,0.33868208]
[1746606180213,13.25739661,1839.8,1839.6,0.33868208]
[1746606180370,12.48079661,1839.8,1839.6,5.77457523]
[1746606180901,12.48079661,1839.8,1839.6,5.7744691]
[1746606183119,2.28079661,1839.8,1839.6,5.7744691]
[1746606186227,2.28079661,1839.8,1839.6,0.33868208]
[1746606187530,2.28079661,1839.8,1839.6,5.77455348]
[1746606187699,0.7701,1839.7,1839.6,0.33868208]
[1746606188326,0.7701,1839.7,1839.4,6.25207009]
[1746606188526,0.7701,1839.7,1839.6,0.33569129]
[1746606188738,3.05089661,1839.7,1839.5,0.3362666]
[1746606188924,8.48667278,1839.7,1839.6,0.33569129]
[1746606189243,8.48667278,1839.7,1839.4,5.43654296]
[1746606189391,8.48667278,1839.7,1839.5,0.33602601]
[1746606190141,9.87888468,1839.7,1839.5,0.33602601]
[1746606190542,9.87888468,1839.7,1839.3,10.8733708]
[1746606190713,8.48667278,1839.7,1839.6,0.3354507]
[1746606191236,8.48667278,1839.7,1839.3,10.87333989]
[1746606191408,8.48667278,1839.7,1839.3,5.43666604]
[1746606191644,8.48667278,1839.7,1839.4,0.33660139]
[1746606192020,8.48667278,1839.7,1839.3,10.87332235]
[1746606192233,6.23965985,1839.5,1839.4,0.33660139]
[1746606192432,11.67618649,1839.5,1839.0,17.07177368]
[1746606192731,11.67618649,1839.5,1839.1,5.74858291]
[1746606192732,2.28079661,1839.2,1839.1,5.74858291]
[1746606193836,2.28079661,1839.2,1839.1,0.31114069]
[1746606194215,2.28079661,1839.2,1838.8,5.396]
[1746606194216,8.46857142,1839.2,1838.8,5.396]
[1746606194401,5.43756294,1839.1,1838.9,16.00692339]
[1746606194737,8.46893451,1839.0,1838.9,16.00692339]
[1746606195029,13.74973112,1839.0,1838.9,16.00692339]
[1746606195632,14.15470294,1839.0,1838.9,16.00692339]
[1746606195952,14.15470294,1839.0,1838.9,18.28771339]
[1746606196247,16.11392953,1839.0,1838.9,2.70421714]
[1746606196397,16.11392953,1839.0,1838.9,0.28772]
[1746606196595,5.43862511,1838.7,1838.6,4.24961192]
[1746606196796,11.51412172,1838.7,1838.6,4.24961192]
[1746606197202,11.51412172,1838.7,1838.6,4.53905936]
[1746606197534,13.20937799,1838.7,1838.6,4.53905936]
[1746606197737,13.20937799,1838.7,1838.6,0.89287944]
[1746606198646,13.20937799,1838.7,1838.6,3.30937944]
[1746606199345,13.20937799,1838.7,1838.6,18.89287944]
[1746606204254,13.75937799,1838.7,1838.6,18.89287944]
[1746606206652,13.75937799,1838.7,1838.6,0.89287944]
[1746606206846,13.75937799,1838.7,1838.6,0.603432]
[1746606207258,13.76106603,1838.7,1838.6,0.603432]
[1746606210058,23.96106603,1838.7,1838.6,0.603432]
[1746606212759,23.96106603,1838.7,1838.6,1e-08]
[1746606222238,5.4401569,1838.2,1838.0,0.78]
[1746606222768,5.4401569,1838.2,1838.1,0.30143634]
[1746606222949,7.72264155,1838.2,1838.1,0.30143634]
[1746606224664,5.44061919,1838.1,1837.8,0.7739]
[1746606225134,5.44061919,1838.1,1837.9,0.30324003]
[1746606225370,5.44061919,1838.1,1837.8,0.7739]
[1746606225544,5.44061919,1838.1,1838.0,0.30276653]
[1746606225735,5.44061919,1838.1,1837.8,0.7739]
[1746606225936,5.44061919,1838.1,1837.9,0.30334285]
[1746606226234,5.4406964,1838.0,1837.8,0.7739]
[1746606226681,5.44060124,1838.1,1837.8,0.7739]
[1746606227727,10.88128302,1838.1,1837.8,0.7739]
[1746606227946,5.44040041,1838.1,1837.8,0.7739]
[1746606228150,7.7233043,1838.0,1837.8,0.7739]
[1746606229982,2.28248465,1838.0,1837.8,0.7739]
[1746606230335,12.48248465,1838.3,1837.9,0.7748]
[1746606230571,5.44010889,1838.2,1837.9,6.21568814]
[1746606230775,5.44010889,1838.2,1837.9,0.7748]
[1746606232566,17.92254648,1838.3,1837.9,6.21572483]
[1746606232567,17.92246249,1838.3,1837.9,6.21572483]
[1746606233140,17.92246249,1838.3,1837.9,0.7748]
[1746606233359,5.44020609,1838.2,1837.9,0.7748]
[1746606233541,5.44020609,1838.2,1837.9,1.45854506]
[1746606234677,5.44020609,1838.2,1837.9,6.8995113]
[1746606234994,7.72246697,1838.3,1838.0,0.8332]
[1746606235337,7.72246697,1838.3,1838.1,0.30287578]
[1746606235789,2.28248465,1838.3,1838.1,0.30287578]
[1746606235953,5.28248465,1838.3,1838.1,0.30287578]
[1746606236692,10.72231588,1838.3,1838.1,0.30287578]
[1746606237991,10.72231588,1838.3,1838.1,0.30287578]
[1746606241662,5.44010445,1838.2,1838.1,0.30287578]
[1746606242194,10.72248529,1838.3,1838.1,0.30287578]
[1746606243495,16.16254378,1838.3,1838.1,0.30287578]
[1746606243795,16.16253425,1838.3,1838.1,0.30287578]
[1746606243996,10.72248529,1838.3,1838.1,0.30287578]
[1746606247702,5.44010445,1838.2,1838.1,0.30287578]
[1746606247995,5.44010445,1838.2,1838.1,0.24487578]
[1746606248570,5.44010445,1838.2,1837.9,6.2450825]
[1746606248774,5.44010445,1838.2,1838.0,0.2980703]
[1746606249208,16.16253759,1838.3,1838.0,0.2980703]
[1746606249391,10.72248529,1838.3,1838.0,0.2980703]
[1746606250712,10.72248529,1838.3,1838.0,5.73873961]
[1746606251011,10.72248529,1838.3,1838.1,0.7609]
[1746606251311,10.72248529,1838.3,1838.2,0.29691786]
[1746606251715,5.28248465,1838.3,1838.2,0.29691786]
[1746606251909,3.0,1838.3,1838.2,0.29691786]
[1746606254242,5.43952636,1838.4,1838.2,0.29691786]
[1746606256407,3.0,1838.4,1838.2,0.29691786]
[1746606256613,2.28248465,1838.5,1838.3,0.751]
[1746606256975,2.28248465,1838.5,1838.4,0.29552577]
[1746606257180,7.7217014,1838.5,1838.4,0.29552577]
[1746606257791,8.4728014,1838.5,1838.4,0.29552577]
[1746606258006,5.43962988,1838.4,1838.1,0.7593]
[1746606258218,6.19135494,1838.2,1837.8,6.2003244]
[1746606258384,5.44025494,1838.2,1837.8,11.6414284]
[1746606258592,7.72242268,1838.3,1837.9,5.44094319]
[1746606259217,5.44011404,1838.2,1837.9,5.44094319]
[1746606259516,6.19072756,1838.4,1838.0,5.44043618]
[1746606259687,3.0,1838.5,1838.3,0.7753]
[1746606260613,3.0,1838.5,1838.3,6.21499314]
[1746606260823,5.28248465,1838.6,1838.3,6.21499314]
[1746606262129,10.72142526,1838.6,1838.3,0.7753]
[1746606262501,5.43924017,1838.5,1838.3,0.7753]
[1746606262700,7.72206082,1838.4,1838.1,0.8317]
[1746606262899,2.28248465,1838.4,1838.1,6.27190235]
[1746606264113,2.28248465,1838.4,1838.1,11.71209163]
[1746606265226,2.28248465,1838.4,1838.2,5.44008017]
[1746606265396,2.28248465,1838.4,1838.2,5.71896707]
[1746606266429,10.72156869,1838.6,1838.2,5.71896707]
[1746606266797,10.72156869,1838.6,1838.3,5.43976697]
[1746606267131,10.72156869,1838.6,1838.4,0.27790602]
[1746606267496,10.72156869,1838.6,1838.2,10.8798629]
[1746606267735,10.72156869,1838.6,1838.2,12.05101919]
[1746606268034,16.16077395,1838.6,1838.3,0.27848209]
[1746606268404,7.72199726,1838.4,1838.3,0.27848209]
[1746606268600,2.28248465,1838.4,1838.3,0.27848209]
[1746606268813,2.28248465,1838.4,1838.1,6.27207512]
[1746606269018,2.28248465,1838.4,1838.3,0.27844782]
[1746606269207,5.43980851,1838.3,1838.2,0.27902395]
[1746606269414,6.24941158,1838.2,1837.9,6.23492486]
[1746606269613,2.28248465,1838.2,1837.9,6.23490845]
[1746606269815,2.28248465,1838.2,1838.0,5.44056302]
[1746606270218,8.49502096,1838.2,1837.8,5.44113264]
[1746606270423,7.72278829,1838.2,1837.8,5.44113264]
[1746606271749,7.72278829,1838.2,1837.8,10.88225074]
[1746606271920,7.72278829,1838.2,1837.8,5.4411181]
[1746606272122,7.72278829,1838.2,1837.9,18.0]
[1746606273350,2.28248465,1838.2,1837.9,23.4409853]
[1746606274434,2.28248465,1838.2,1837.9,28.88176958]
[1746606274854,2.28248465,1838.2,1837.9,5.44078428]
[1746606275252,2.28248465,1838.2,1837.9,10.88156227]
[1746606276155,2.28248465,1838.2,1838.0,5.44065909]
[1746606276655,6.13558874,1838.4,1838.1,5.4402427]
[1746606276863,5.28248465,1838.4,1838.2,5.43992601]
[1746606277157,6.35465607,1838.4,1838.1,5.4402023]
[1746606277322,5.28248465,1838.4,1838.1,5.4402023]
[1746606277524,3.0,1838.4,1838.2,5.43998724]
[1746606278756,10.2,1838.8,1838.4,0.7816]
[1746606278920,5.43808019,1838.9,1838.5,5.43905499]
[1746606279120,5.43808019,1838.9,1838.6,0.27682258]
[1746606279331,5.43808019,1838.9,1838.5,5.43901271]
[1746606279534,5.43808019,1838.9,1838.6,0.27682258]
[1746606280348,2.28248465,1838.8,1838.6,0.27682258]
[1746606283754,2.28248465,1838.8,1838.6,5.71560103]
[1746606285757,3.0,1838.9,1838.7,0.8033]
[1746606285950,5.28248465,1839.0,1838.8,0.2740949]
[1746606286454,5.28248465,1839.0,1838.8,5.71240491]
[1746606286660,3.0,1839.0,1838.8,5.71240491]
[1746606286844,5.28248465,1839.0,1838.8,5.71240491]
[1746606287562,5.28248465,1839.0,1838.8,0.2740949]
[1746606288054,5.28248465,1839.0,1838.8,5.71228287]
[1746606288438,2.28248465,1839.0,1838.8,5.71228287]
[1746606293056,2.28248465,1839.1,1838.8,0.2740949]
[1746606293267,5.43774441,1839.0,1838.8,0.2740949]
[1746606293435,3.11018465,1838.9,1838.8,0.2740949]
[1746606293965,3.11018465,1838.9,1838.8,0.27190282]
[1746606294130,3.11018465,1838.9,1838.6,5.43870469]
[1746606294329,3.11018465,1838.9,1838.7,0.27264983]
[1746606294531,3.11018465,1838.9,1838.6,5.43870469]
[1746606294851,3.11018465,1838.9,1838.7,0.27264983]
[1746606295257,3.11018465,1838.9,1838.6,5.43870469]
[1746606295433,3.11018465,1838.9,1838.8,0.2711151]
[1746606295633,3.11018465,1838.9,1838.7,0.27169091]
[1746606295834,3.11018465,1838.9,1838.8,0.2711151]
[1746606296167,3.11018465,1838.9,1838.6,5.43870469]
[1746606296470,3.11018465,1838.9,1838.7,0.27172515]